[Event "Titled Tuesday Blitz April 4 Late 2023"]
[White "Popov, Mikhail"]
[Black "Melikhov, Evgeny V."]
[WhiteFideId "4146182"]
[BlackFideId "4122046"]
[WhiteElo "2244"]
[BlackElo "2158"]
[Result "0-1"]
[Round "07"]
[TimeControl "180+2"]
[Date "2023.04.04"]
[WhiteClock "0:00:01"]
[BlackClock "0:00:11"]

1. d4 {[%clk 0:03:00]}  Nf6 {[%clk 0:02:59]} 2. Nf3 {[%clk 0:03:01]}  d5 {[%clk 0:02:58]} 3. c4 {[%clk 0:02:58]}  e6 {[%clk 0:02:58]} 4. Nc3 {[%clk 0:02:53]}  Bb4 {[%clk 0:02:58]} 5. Qb3 {[%clk 0:02:52]}  Nc6 {[%clk 0:02:57]} 6. Bg5 {[%clk 0:02:52]}  h6 {[%clk 0:02:55]} 7. Bxf6 {[%clk 0:02:51]}  Qxf6 {[%clk 0:02:55]} 8. e3 {[%clk 0:02:50]}  O-O {[%clk 0:02:51]} 9. Be2 {[%clk 0:02:47]}  dxc4 {[%clk 0:02:49]} 10. Qxc4 {[%clk 0:02:45]}  a6 {[%clk 0:02:47]} 11. O-O {[%clk 0:02:44]}  Bd6 {[%clk 0:02:46]} 12. Rac1 {[%clk 0:02:36]}  e5 {[%clk 0:02:45]} 13. Ne4 {[%clk 0:02:31]}  Qe7 {[%clk 0:02:39]} 14. Nxd6 {[%clk 0:02:19]}  cxd6 {[%clk 0:02:39]} 15. d5 {[%clk 0:02:08]}  Nb8 {[%clk 0:02:29]} 16. Qxc8 {[%clk 0:01:42]}  Rxc8 {[%clk 0:02:28]} 17. Rxc8+ {[%clk 0:01:43]}  Kh7 {[%clk 0:02:27]} 18. Rfc1 {[%clk 0:01:43]}  e4 {[%clk 0:01:52]} 19. Nd4 {[%clk 0:01:38]}  Qe5 {[%clk 0:01:48]} 20. Rf8 {[%clk 0:01:16]}  Qxd5 {[%clk 0:01:35]} 21. Rcc8 {[%clk 0:01:14]}  Kg6 {[%clk 0:01:06]} 22. Bc4 {[%clk 0:01:00]}  Qa5 {[%clk 0:01:01]} 23. Bxf7+ {[%clk 0:00:56]}  Kg5 {[%clk 0:01:00]} 24. g3 {[%clk 0:00:51]}  Nd7 {[%clk 0:00:53]} 25. Rxa8 {[%clk 0:00:13]}  Nxf8 {[%clk 0:00:49]} 26. Rxf8 {[%clk 0:00:13]}  d5 {[%clk 0:00:26]} 27. Be8 {[%clk 0:00:12]}  g6 {[%clk 0:00:20]} 28. h4+ {[%clk 0:00:12]}  Kh5 {[%clk 0:00:18]} 29. Rf5+ {[%clk 0:00:11]}  Kg4 {[%clk 0:00:19]} 30. Bxg6 {[%clk 0:00:10]}  Kh3 {[%clk 0:00:15]} 31. Nc2 {[%clk 0:00:02]}  Qd2 {[%clk 0:00:13]} 32. g4 {[%clk 0:00:01]}  Qd1+ {[%clk 0:00:11]} 0-1


[Site "https://www.chess.com"]

[Event "Titled Tuesday Blitz April 4 Late 2023"]
[White "Korkmaz, Necmettin"]
[Black "Schuster, Karsten"]
[WhiteFideId "6303285"]
[BlackFideId "4611071"]
[WhiteElo "2097"]
[BlackElo "2294"]
[Result "1-0"]
[Round "07"]
[TimeControl "180+2"]
[Date "2023.04.04"]
[WhiteClock "0:00:11"]
[BlackClock "0:00:07"]

1. e4 {[%clk 0:03:00]}  d5 {[%clk 0:02:59]} 2. exd5 {[%clk 0:03:00]}  Qxd5 {[%clk 0:02:59]} 3. Nc3 {[%clk 0:02:59]}  Qd6 {[%clk 0:02:59]} 4. d4 {[%clk 0:02:59]}  c6 {[%clk 0:02:59]} 5. Nf3 {[%clk 0:02:59]}  Bg4 {[%clk 0:02:59]} 6. g3 {[%clk 0:02:53]}  Nf6 {[%clk 0:02:56]} 7. Bg2 {[%clk 0:02:53]}  e6 {[%clk 0:02:56]} 8. Bf4 {[%clk 0:02:50]}  Qb4 {[%clk 0:02:56]} 9. Qd2 {[%clk 0:02:51]}  Be7 {[%clk 0:02:55]} 10. a3 {[%clk 0:02:48]}  Qa5 {[%clk 0:02:54]} 11. Ne5 {[%clk 0:02:42]}  Bf5 {[%clk 0:02:52]} 12. O-O {[%clk 0:02:39]}  Nbd7 {[%clk 0:02:50]} 13. Nc4 {[%clk 0:02:32]}  Qd8 {[%clk 0:02:47]} 14. Nd6+ {[%clk 0:02:32]}  Bxd6 {[%clk 0:02:47]} 15. Bxd6 {[%clk 0:02:32]}  Nb6 {[%clk 0:02:45]} 16. Bc5 {[%clk 0:02:23]}  Nbd5 {[%clk 0:02:44]} 17. Nxd5 {[%clk 0:02:17]}  cxd5 {[%clk 0:02:44]} 18. a4 {[%clk 0:02:15]}  Ne4 {[%clk 0:02:41]} 19. Bxe4 {[%clk 0:02:14]}  Bxe4 {[%clk 0:02:41]} 20. a5 {[%clk 0:02:14]}  h5 {[%clk 0:02:38]} 21. Rfe1 {[%clk 0:02:08]}  h4 {[%clk 0:02:36]} 22. Qf4 {[%clk 0:02:07]}  hxg3 {[%clk 0:02:34]} 23. fxg3 {[%clk 0:02:06]}  Rh6 {[%clk 0:02:20]} 24. Rf1 {[%clk 0:01:58]}  Rf6 {[%clk 0:02:20]} 25. Qe5 {[%clk 0:01:58]}  Bxc2 {[%clk 0:02:02]} 26. Qh5 {[%clk 0:01:49]}  Kd7 {[%clk 0:01:59]} 27. Rxf6 {[%clk 0:01:44]}  Qxf6 {[%clk 0:01:58]} 28. Rf1 {[%clk 0:01:43]}  Bf5 {[%clk 0:01:58]} 29. Qf3 {[%clk 0:01:35]}  Qh6 {[%clk 0:01:51]} 30. g4 {[%clk 0:01:33]}  Bg6 {[%clk 0:01:51]} 31. Qg3 {[%clk 0:01:33]}  Ke8 {[%clk 0:01:29]} 32. Re1 {[%clk 0:01:13]}  Qd2 {[%clk 0:01:22]} 33. Rf1 {[%clk 0:00:56]}  Be4 {[%clk 0:01:20]} 34. h4 {[%clk 0:00:49]}  b6 {[%clk 0:01:16]} 35. axb6 {[%clk 0:00:48]}  axb6 {[%clk 0:01:16]} 36. Bxb6 {[%clk 0:00:48]}  Rc8 {[%clk 0:01:04]} 37. Bc5 {[%clk 0:00:48]}  Qe2 {[%clk 0:00:49]} 38. Qf2 {[%clk 0:00:20]}  Qxg4+ {[%clk 0:00:48]} 39. Kh2 {[%clk 0:00:20]}  f5 {[%clk 0:00:46]} 40. Rg1 {[%clk 0:00:20]}  Qf3 {[%clk 0:00:44]} 41. Qxf3 {[%clk 0:00:19]}  Bxf3 {[%clk 0:00:43]} 42. Rxg7 {[%clk 0:00:20]}  Be4 {[%clk 0:00:39]} 43. Kg3 {[%clk 0:00:20]}  Rd8 {[%clk 0:00:36]} 44. Kf4 {[%clk 0:00:20]}  Rd7 {[%clk 0:00:37]} 45. Rg8+ {[%clk 0:00:20]}  Kf7 {[%clk 0:00:37]} 46. Rg5 {[%clk 0:00:21]}  Kf6 {[%clk 0:00:36]} 47. h5 {[%clk 0:00:19]}  Rh7 {[%clk 0:00:36]} 48. Rg6+ {[%clk 0:00:19]}  Kf7 {[%clk 0:00:36]} 49. Kg5 {[%clk 0:00:20]}  f4 {[%clk 0:00:34]} 50. Rf6+ {[%clk 0:00:20]}  Kg7 {[%clk 0:00:34]} 51. Rxf4 {[%clk 0:00:21]}  Bf5 {[%clk 0:00:31]} 52. Bd6 {[%clk 0:00:22]}  Kf7 {[%clk 0:00:31]} 53. Be5 {[%clk 0:00:23]}  Ke7 {[%clk 0:00:29]} 54. h6 {[%clk 0:00:23]}  Rf7 {[%clk 0:00:29]} 55. Bg7 {[%clk 0:00:24]}  Kd6 {[%clk 0:00:28]} 56. Rxf5 {[%clk 0:00:21]}  Rxf5+ {[%clk 0:00:28]} 57. Kg6 {[%clk 0:00:22]}  Rf4 {[%clk 0:00:23]} 58. h7 {[%clk 0:00:22]}  Rh4 {[%clk 0:00:23]} 59. Bh6 {[%clk 0:00:21]}  Rg4+ {[%clk 0:00:23]} 60. Bg5 {[%clk 0:00:22]}  Rxd4 {[%clk 0:00:19]} 61. h8=Q {[%clk 0:00:22]}  Re4 {[%clk 0:00:19]} 62. Qb8+ {[%clk 0:00:21]}  Kc6 {[%clk 0:00:19]} 63. Bd8 {[%clk 0:00:20]}  Kc5 {[%clk 0:00:18]} 64. Qb6+ {[%clk 0:00:18]}  Kc4 {[%clk 0:00:18]} 65. b3+ {[%clk 0:00:18]}  Kd3 {[%clk 0:00:19]} 66. Bf6 {[%clk 0:00:18]}  Kc2 {[%clk 0:00:17]} 67. Qf2+ {[%clk 0:00:18]}  Kxb3 {[%clk 0:00:17]} 68. Qb2+ {[%clk 0:00:18]}  Kc4 {[%clk 0:00:17]} 69. Be5 {[%clk 0:00:18]}  Kc5 {[%clk 0:00:15]} 70. Kf6 {[%clk 0:00:18]}  Kc6 {[%clk 0:00:10]} 71. Kxe6 {[%clk 0:00:18]}  Kc5 {[%clk 0:00:10]} 72. Qc3+ {[%clk 0:00:17]}  Kb6 {[%clk 0:00:10]} 73. Kxd5 {[%clk 0:00:16]}  Ra4 {[%clk 0:00:09]} 74. Qc6+ {[%clk 0:00:15]}  Ka7 {[%clk 0:00:07]} 75. Qxa4+ {[%clk 0:00:14]}  Kb7 {[%clk 0:00:07]} 76. Qb5+ {[%clk 0:00:14]}  Kc8 {[%clk 0:00:07]} 77. Qc6+ {[%clk 0:00:11]}  Kd8 {[%clk 0:00:07]} 78. Bf6# {[%clk 0:00:11]} 1-0


[Site "https://www.chess.com"]

[Event "Titled Tuesday Blitz April 4 Late 2023"]
[White "LuckyMajky"]
[Black "mjelcic"]
[WhiteElo "2458"]
[BlackElo "2234"]
[Result "1-0"]
[Round "07"]
[TimeControl "180+2"]
[Date "2023.04.04"]
[WhiteClock "0:01:06"]
[BlackClock "0:00:30"]

1. Nf3 {[%clk 0:03:00]}  Nf6 {[%clk 0:02:59]} 2. c4 {[%clk 0:03:00]}  g6 {[%clk 0:02:55]} 3. g3 {[%clk 0:02:59]}  Bg7 {[%clk 0:02:54]} 4. Bg2 {[%clk 0:03:00]}  O-O {[%clk 0:02:54]} 5. O-O {[%clk 0:03:01]}  d6 {[%clk 0:02:54]} 6. Nc3 {[%clk 0:03:00]}  e5 {[%clk 0:02:54]} 7. d3 {[%clk 0:03:01]}  Nc6 {[%clk 0:02:53]} 8. Rb1 {[%clk 0:03:01]}  a5 {[%clk 0:02:52]} 9. a3 {[%clk 0:03:02]}  Nd4 {[%clk 0:02:52]} 10. Bg5 {[%clk 0:02:56]}  c6 {[%clk 0:02:36]} 11. Nxd4 {[%clk 0:02:51]}  exd4 {[%clk 0:02:36]} 12. Ne4 {[%clk 0:02:51]}  Bf5 {[%clk 0:02:23]} 13. b4 {[%clk 0:02:46]}  axb4 {[%clk 0:02:21]} 14. axb4 {[%clk 0:02:47]}  Bxe4 {[%clk 0:02:19]} 15. Bxe4 {[%clk 0:02:47]}  Qd7 {[%clk 0:02:15]} 16. Bf3 {[%clk 0:02:45]}  Ra2 {[%clk 0:02:02]} 17. Ra1 {[%clk 0:02:28]}  Rfa8 {[%clk 0:02:00]} 18. Rxa2 {[%clk 0:02:27]}  Rxa2 {[%clk 0:02:01]} 19. Qb3 {[%clk 0:02:28]}  Ra8 {[%clk 0:02:00]} 20. Qb2 {[%clk 0:02:16]}  Ng4 {[%clk 0:01:57]} 21. Ra1 {[%clk 0:02:09]}  Rxa1+ {[%clk 0:01:56]} 22. Qxa1 {[%clk 0:02:10]}  h6 {[%clk 0:01:56]} 23. Qa8+ {[%clk 0:02:08]}  Kh7 {[%clk 0:01:56]} 24. Bf4 {[%clk 0:02:06]}  Ne5 {[%clk 0:01:50]} 25. Be4 {[%clk 0:01:52]}  d5 {[%clk 0:01:38]} 26. Bxe5 {[%clk 0:01:35]}  Bxe5 {[%clk 0:01:36]} 27. cxd5 {[%clk 0:01:35]}  cxd5 {[%clk 0:01:36]} 28. Bf3 {[%clk 0:01:36]}  Bd6 {[%clk 0:01:09]} 29. Qa7 {[%clk 0:01:15]}  Bxb4 {[%clk 0:00:54]} 30. Qxd4 {[%clk 0:01:15]}  Be1 {[%clk 0:00:44]} 31. Qxd5 {[%clk 0:01:12]}  Qxd5 {[%clk 0:00:33]} 32. Bxd5 {[%clk 0:01:12]}  b5 {[%clk 0:00:34]} 33. Bxf7 {[%clk 0:01:13]}  b4 {[%clk 0:00:34]} 34. Bb3 {[%clk 0:01:12]}  Bc3 {[%clk 0:00:34]} 35. e3 {[%clk 0:01:12]}  Kg7 {[%clk 0:00:34]} 36. Kf1 {[%clk 0:01:12]}  Kf6 {[%clk 0:00:35]} 37. Ke2 {[%clk 0:01:12]}  Ke5 {[%clk 0:00:36]} 38. d4+ {[%clk 0:01:12]}  Ke4 {[%clk 0:00:36]} 39. Bc2+ {[%clk 0:01:09]}  Kd5 {[%clk 0:00:35]} 40. Bxg6 {[%clk 0:01:10]}  Kc4 {[%clk 0:00:31]} 41. Bf7+ {[%clk 0:01:10]}  Kb5 {[%clk 0:00:31]} 42. Bb3 {[%clk 0:01:10]}  Kc6 {[%clk 0:00:32]} 43. Kd3 {[%clk 0:01:09]}  Be1 {[%clk 0:00:31]} 44. f3 {[%clk 0:01:05]}  Bf2 {[%clk 0:00:32]} 45. g4 {[%clk 0:01:05]}  Bg1 {[%clk 0:00:31]} 46. h4 {[%clk 0:01:05]}  Bf2 {[%clk 0:00:31]} 47. g5 {[%clk 0:01:06]}  Bxh4 {[%clk 0:00:29]} 48. gxh6 {[%clk 0:01:06]}  Bf6 {[%clk 0:00:30]} 49. e4 {[%clk 0:01:06]}  Bg7 {[%clk 0:00:30]} 50. hxg7 {[%clk 0:01:06]} 1-0


[Site "https://www.chess.com"]

[Event "Titled Tuesday Blitz April 4 Late 2023"]
[White "Ozalp, Burak"]
[Black "Senthilkumar, Pranav"]
[WhiteFideId "6314210"]
[BlackFideId "2083477"]
[WhiteElo "2106"]
[BlackElo "1860"]
[Result "0-1"]
[Round "07"]
[TimeControl "180+2"]
[Date "2023.04.04"]
[WhiteClock "0:00:05"]
[BlackClock "0:00:04"]

1. d4 {[%clk 0:02:57]}  Nf6 {[%clk 0:02:58]} 2. c4 {[%clk 0:02:56]}  e6 {[%clk 0:02:58]} 3. Nf3 {[%clk 0:02:55]}  d5 {[%clk 0:02:55]} 4. g3 {[%clk 0:02:49]}  Be7 {[%clk 0:02:54]} 5. c5 {[%clk 0:02:46]}  O-O {[%clk 0:02:53]} 6. Bg2 {[%clk 0:02:46]}  b6 {[%clk 0:02:53]} 7. cxb6 {[%clk 0:02:37]}  axb6 {[%clk 0:02:54]} 8. O-O {[%clk 0:02:37]}  c5 {[%clk 0:02:54]} 9. Nc3 {[%clk 0:02:36]}  Nc6 {[%clk 0:02:54]} 10. Bf4 {[%clk 0:02:33]}  Ba6 {[%clk 0:02:47]} 11. Re1 {[%clk 0:02:30]}  Na5 {[%clk 0:02:44]} 12. e4 {[%clk 0:02:22]}  Nc4 {[%clk 0:02:28]} 13. exd5 {[%clk 0:02:05]}  Nxb2 {[%clk 0:02:22]} 14. Qc2 {[%clk 0:01:53]}  Nd3 {[%clk 0:02:18]} 15. dxe6 {[%clk 0:01:53]}  Nxe1 {[%clk 0:02:16]} 16. exf7+ {[%clk 0:01:51]}  Rxf7 {[%clk 0:02:15]} 17. Rxe1 {[%clk 0:01:51]}  cxd4 {[%clk 0:02:16]} 18. Ne4 {[%clk 0:01:50]}  d3 {[%clk 0:02:08]} 19. Qb3 {[%clk 0:01:25]}  Nxe4 {[%clk 0:01:02]} 20. Ne5 {[%clk 0:01:24]}  Nd6 {[%clk 0:00:56]} 21. Bxa8 {[%clk 0:01:13]}  Qxa8 {[%clk 0:00:49]} 22. Nxf7 {[%clk 0:01:13]}  Bc4 {[%clk 0:00:44]} 23. Qb4 {[%clk 0:00:51]}  d2 {[%clk 0:00:37]} 24. Qxd2 {[%clk 0:00:48]}  Bxf7 {[%clk 0:00:23]} 25. Bxd6 {[%clk 0:00:47]}  Bf6 {[%clk 0:00:20]} 26. Be5 {[%clk 0:00:42]}  Bd8 {[%clk 0:00:14]} 27. a4 {[%clk 0:00:27]}  h6 {[%clk 0:00:10]} 28. Rd1 {[%clk 0:00:21]}  Be7 {[%clk 0:00:08]} 29. Qd7 {[%clk 0:00:15]}  Qf3 {[%clk 0:00:04]} 30. Qc8+ {[%clk 0:00:09]}  Kh7 {[%clk 0:00:04]} 31. Re1 {[%clk 0:00:10]}  Bc5 {[%clk 0:00:04]} 32. Bxg7 {[%clk 0:00:06]}  Qxf2+ {[%clk 0:00:03]} 33. Kh1 {[%clk 0:00:06]}  Bd5+ {[%clk 0:00:04]} 34. Re4 {[%clk 0:00:05]}  Bxe4# {[%clk 0:00:04]} 0-1


[Site "https://www.chess.com"]

[Event "Titled Tuesday Blitz April 4 Late 2023"]
[White "Pires, Marcos Vinicius Torsani"]
[Black "Stachanczyk, Jacek"]
[WhiteFideId "2118939"]
[BlackFideId "1116657"]
[WhiteElo "2273"]
[BlackElo "2084"]
[Result "1-0"]
[Round "07"]
[TimeControl "180+2"]
[Date "2023.04.04"]
[WhiteClock "0:00:17"]
[BlackClock "0:00:01"]

1. d4 {[%clk 0:03:00]}  Nf6 {[%clk 0:02:56]} 2. Bf4 {[%clk 0:03:01]}  d5 {[%clk 0:02:54]} 3. e3 {[%clk 0:03:01]}  c5 {[%clk 0:02:54]} 4. c3 {[%clk 0:03:01]}  Nc6 {[%clk 0:02:55]} 5. Nd2 {[%clk 0:03:01]}  cxd4 {[%clk 0:02:54]} 6. exd4 {[%clk 0:03:00]}  Bg4 {[%clk 0:02:55]} 7. Qb3 {[%clk 0:02:59]}  Qc8 {[%clk 0:02:55]} 8. h3 {[%clk 0:02:56]}  Bh5 {[%clk 0:02:55]} 9. g4 {[%clk 0:02:55]}  Bg6 {[%clk 0:02:54]} 10. g5 {[%clk 0:02:55]}  Ne4 {[%clk 0:02:53]} 11. Qxd5 {[%clk 0:02:52]}  Nxd2 {[%clk 0:02:38]} 12. Bxd2 {[%clk 0:02:53]}  e6 {[%clk 0:02:33]} 13. Qf3 {[%clk 0:02:43]}  Bd6 {[%clk 0:02:22]} 14. h4 {[%clk 0:02:31]}  O-O {[%clk 0:02:12]} 15. h5 {[%clk 0:02:30]}  Bf5 {[%clk 0:02:12]} 16. Bd3 {[%clk 0:02:24]}  Bxd3 {[%clk 0:01:53]} 17. Qxd3 {[%clk 0:02:23]}  e5 {[%clk 0:01:47]} 18. d5 {[%clk 0:02:22]}  e4 {[%clk 0:01:47]} 19. Qe2 {[%clk 0:02:09]}  Ne5 {[%clk 0:01:45]} 20. Qxe4 {[%clk 0:02:02]}  Re8 {[%clk 0:01:44]} 21. O-O-O {[%clk 0:02:02]}  Ng4 {[%clk 0:01:03]} 22. Qf3 {[%clk 0:01:42]}  Ne5 {[%clk 0:01:02]} 23. Qe2 {[%clk 0:01:27]}  Nc4 {[%clk 0:01:00]} 24. Qd3 {[%clk 0:01:28]}  Ne5 {[%clk 0:00:49]} 25. Qc2 {[%clk 0:01:28]}  Qc4 {[%clk 0:00:47]} 26. Kb1 {[%clk 0:01:23]}  Qxd5 {[%clk 0:00:45]} 27. Nh3 {[%clk 0:01:13]}  Qc6 {[%clk 0:00:39]} 28. Nf4 {[%clk 0:01:01]}  Nc4 {[%clk 0:00:37]} 29. Bc1 {[%clk 0:00:56]}  Rad8 {[%clk 0:00:35]} 30. Rhe1 {[%clk 0:00:52]}  Rxe1 {[%clk 0:00:33]} 31. Rxe1 {[%clk 0:00:51]}  Bxf4 {[%clk 0:00:19]} 32. Bxf4 {[%clk 0:00:49]}  Qf3 {[%clk 0:00:19]} 33. Qe2 {[%clk 0:00:31]}  Qc6 {[%clk 0:00:11]} 34. Bc1 {[%clk 0:00:27]}  b5 {[%clk 0:00:06]} 35. Qe4 {[%clk 0:00:25]}  Qc8 {[%clk 0:00:06]} 36. g6 {[%clk 0:00:20]}  hxg6 {[%clk 0:00:04]} 37. hxg6 {[%clk 0:00:21]}  fxg6 {[%clk 0:00:05]} 38. Qxg6 {[%clk 0:00:20]}  Rf8 {[%clk 0:00:04]} 39. Qe6+ {[%clk 0:00:20]}  Qxe6 {[%clk 0:00:04]} 40. Rxe6 {[%clk 0:00:21]}  Rxf2 {[%clk 0:00:04]} 41. Re7 {[%clk 0:00:22]}  Rf7 {[%clk 0:00:03]} 42. Re8+ {[%clk 0:00:20]}  Rf8 {[%clk 0:00:03]} 43. Re6 {[%clk 0:00:19]}  Rf7 {[%clk 0:00:03]} 44. b3 {[%clk 0:00:19]}  Nb6 {[%clk 0:00:02]} 45. Re5 {[%clk 0:00:20]}  a6 {[%clk 0:00:02]} 46. Re6 {[%clk 0:00:20]}  Nd5 {[%clk 0:00:02]} 47. Rxa6 {[%clk 0:00:19]}  Nxc3+ {[%clk 0:00:02]} 48. Kc2 {[%clk 0:00:20]}  Ne2 {[%clk 0:00:02]} 49. Bb2 {[%clk 0:00:20]}  Nf4 {[%clk 0:00:01]} 50. Rb6 {[%clk 0:00:19]}  Rf5 {[%clk 0:00:01]} 51. Rb7 {[%clk 0:00:18]}  Rg5 {[%clk 0:00:01]} 52. Bc1 {[%clk 0:00:17]} 1-0


[Site "https://www.chess.com"]

[Event "Titled Tuesday Blitz April 4 Late 2023"]
[White "Shapiro, Viktor"]
[Black "Garrido, Denis"]
[WhiteFideId "4175700"]
[BlackFideId "601217"]
[WhiteElo "2152"]
[BlackElo "2343"]
[Result "1-0"]
[Round "07"]
[TimeControl "180+2"]
[Date "2023.04.04"]
[WhiteClock "0:00:21"]
[BlackClock "0:00:08"]

1. Nf3 {[%clk 0:03:00]}  Nf6 {[%clk 0:02:59]} 2. c4 {[%clk 0:03:00]}  g6 {[%clk 0:02:57]} 3. d4 {[%clk 0:03:00]}  Bg7 {[%clk 0:02:57]} 4. Nc3 {[%clk 0:03:01]}  O-O {[%clk 0:02:57]} 5. Bg5 {[%clk 0:03:02]}  d6 {[%clk 0:02:57]} 6. e3 {[%clk 0:03:02]}  Nbd7 {[%clk 0:02:57]} 7. h3 {[%clk 0:03:02]}  h6 {[%clk 0:02:48]} 8. Bh4 {[%clk 0:03:02]}  c5 {[%clk 0:02:44]} 9. Be2 {[%clk 0:03:02]}  g5 {[%clk 0:02:41]} 10. Bg3 {[%clk 0:03:02]}  a6 {[%clk 0:02:37]} 11. O-O {[%clk 0:03:01]}  Re8 {[%clk 0:02:25]} 12. a3 {[%clk 0:03:00]}  b6 {[%clk 0:02:23]} 13. b4 {[%clk 0:02:59]}  cxb4 {[%clk 0:02:22]} 14. axb4 {[%clk 0:02:59]}  Bb7 {[%clk 0:02:23]} 15. Qb3 {[%clk 0:02:37]}  Ne4 {[%clk 0:02:19]} 16. Nxe4 {[%clk 0:02:35]}  Bxe4 {[%clk 0:02:20]} 17. Rfd1 {[%clk 0:02:21]}  Qc8 {[%clk 0:02:11]} 18. Ra2 {[%clk 0:02:10]}  Ra7 {[%clk 0:01:55]} 19. Rda1 {[%clk 0:02:09]}  Nf6 {[%clk 0:01:51]} 20. c5 {[%clk 0:01:59]}  bxc5 {[%clk 0:01:47]} 21. Bxa6 {[%clk 0:01:55]}  Qf5 {[%clk 0:01:33]} 22. bxc5 {[%clk 0:01:53]}  dxc5 {[%clk 0:01:30]} 23. Bb5 {[%clk 0:01:42]}  Rxa2 {[%clk 0:01:27]} 24. Qxa2 {[%clk 0:01:42]}  Rc8 {[%clk 0:01:21]} 25. Be2 {[%clk 0:01:31]}  Nd5 {[%clk 0:01:17]} 26. Rc1 {[%clk 0:01:23]}  cxd4 {[%clk 0:01:14]} 27. Rxc8+ {[%clk 0:01:22]}  Qxc8 {[%clk 0:01:15]} 28. Nxd4 {[%clk 0:01:21]}  Nc3 {[%clk 0:01:13]} 29. Qd2 {[%clk 0:01:19]}  Bxd4 {[%clk 0:01:12]} 30. exd4 {[%clk 0:01:18]}  Qc6 {[%clk 0:01:05]} 31. Bf1 {[%clk 0:01:18]}  Bd5 {[%clk 0:00:59]} 32. f3 {[%clk 0:01:17]}  Kg7 {[%clk 0:00:59]} 33. h4 {[%clk 0:01:17]}  f6 {[%clk 0:00:58]} 34. Qe3 {[%clk 0:01:08]}  e6 {[%clk 0:00:54]} 35. hxg5 {[%clk 0:01:06]}  hxg5 {[%clk 0:00:54]} 36. Be1 {[%clk 0:01:00]}  Nb5 {[%clk 0:00:52]} 37. Qd3 {[%clk 0:00:54]}  Nd6 {[%clk 0:00:50]} 38. Bb4 {[%clk 0:00:50]}  Nf5 {[%clk 0:00:48]} 39. Bc5 {[%clk 0:00:48]}  Nh6 {[%clk 0:00:37]} 40. Qa3 {[%clk 0:00:47]}  Nf7 {[%clk 0:00:37]} 41. Bd3 {[%clk 0:00:42]}  g4 {[%clk 0:00:34]} 42. Be2 {[%clk 0:00:32]}  Ng5 {[%clk 0:00:33]} 43. Kf2 {[%clk 0:00:29]}  gxf3 {[%clk 0:00:17]} 44. gxf3 {[%clk 0:00:29]}  Qc7 {[%clk 0:00:17]} 45. Bd6 {[%clk 0:00:24]}  Qd7 {[%clk 0:00:15]} 46. Qc5 {[%clk 0:00:19]}  f5 {[%clk 0:00:08]} 47. Be5+ {[%clk 0:00:19]}  Kg6 {[%clk 0:00:09]} 48. Qf8 {[%clk 0:00:19]}  Qf7 {[%clk 0:00:07]} 49. Qh8 {[%clk 0:00:19]}  Qh7 {[%clk 0:00:07]} 50. Qf6+ {[%clk 0:00:19]}  Kh5 {[%clk 0:00:08]} 51. f4+ {[%clk 0:00:20]}  Kh4 {[%clk 0:00:08]} 52. Qxg5+ {[%clk 0:00:20]}  Kh3 {[%clk 0:00:08]} 53. Qg3# {[%clk 0:00:21]} 1-0


[Site "https://www.chess.com"]